[Event "Titled Tuesday Blitz July 11 Early 2023"]
[White "Shubenkova, Veronika"]
[Black "Goltsev, Dmitry"]
[WhiteFideId "44124040"]
[BlackFideId "24176710"]
[WhiteElo "2549"]
[BlackElo "2769"]
[Result "0-1"]
[Round "8"]
[TimeControl "180+2"]
[Date "2023.07.11"]
[WhiteClock "0:00:00"]
[BlackClock "0:00:05"]
[Board "39"]

1. e4 {[%clk 0:03:00]}  e6 {[%clk 0:03:00]} 2. d4 {[%clk 0:03:01]}  d5 {[%clk 0:03:01]} 3. exd5 {[%clk 0:03:01]}  exd5 {[%clk 0:03:01]} 4. Nf3 {[%clk 0:03:02]}  Nf6 {[%clk 0:03:01]} 5. c3 {[%clk 0:03:03]}  c5 {[%clk 0:03:01]} 6. Bd3 {[%clk 0:03:04]}  Nc6 {[%clk 0:02:58]} 7. O-O {[%clk 0:03:04]}  Be7 {[%clk 0:02:59]} 8. h3 {[%clk 0:03:04]}  O-O {[%clk 0:02:58]} 9. Bg5 {[%clk 0:03:03]}  Qb6 {[%clk 0:02:52]} 10. dxc5 {[%clk 0:02:57]}  Qxb2 {[%clk 0:02:42]} 11. Nbd2 {[%clk 0:01:55]}  Qxc3 {[%clk 0:02:40]} 12. Nb3 {[%clk 0:01:54]}  Ne4 {[%clk 0:02:25]} 13. Bxe7 {[%clk 0:01:53]}  Nxe7 {[%clk 0:02:26]} 14. Rc1 {[%clk 0:01:48]}  Qf6 {[%clk 0:02:22]} 15. Qc2 {[%clk 0:01:43]}  Bf5 {[%clk 0:02:21]} 16. Nfd4 {[%clk 0:01:34]}  Nc6 {[%clk 0:02:19]} 17. Nxc6 {[%clk 0:01:30]}  bxc6 {[%clk 0:02:17]} 18. Bxe4 {[%clk 0:01:22]}  Bxe4 {[%clk 0:02:17]} 19. Qd2 {[%clk 0:01:19]}  Rab8 {[%clk 0:01:51]} 20. Rc3 {[%clk 0:01:11]}  Rfe8 {[%clk 0:01:14]} 21. Rg3 {[%clk 0:01:05]}  Bg6 {[%clk 0:01:10]} 22. Re1 {[%clk 0:00:58]}  Rxe1+ {[%clk 0:00:57]} 23. Qxe1 {[%clk 0:00:59]}  Qb2 {[%clk 0:00:57]} 24. Qa5 {[%clk 0:00:48]}  h6 {[%clk 0:00:20]} 25. Re3 {[%clk 0:00:47]}  d4 {[%clk 0:00:19]} 26. Qxa7 {[%clk 0:00:42]}  Rf8 {[%clk 0:00:12]} 27. Re7 {[%clk 0:00:27]}  d3 {[%clk 0:00:12]} 28. Rd7 {[%clk 0:00:27]}  Re8 {[%clk 0:00:11]} 29. Qa5 {[%clk 0:00:24]}  Qc2 {[%clk 0:00:08]} 30. Rd8 {[%clk 0:00:10]}  Rxd8 {[%clk 0:00:07]} 31. Qxd8+ {[%clk 0:00:11]}  Kh7 {[%clk 0:00:08]} 32. Qa5 {[%clk 0:00:08]}  Qe2 {[%clk 0:00:03]} 33. Qd2 {[%clk 0:00:06]}  Qe4 {[%clk 0:00:03]} 34. Kf1 {[%clk 0:00:03]}  Qc4 {[%clk 0:00:03]} 35. Kg1 {[%clk 0:00:04]}  Bf5 {[%clk 0:00:03]} 36. Kf1 {[%clk 0:00:04]}  Be6 {[%clk 0:00:04]} 37. Kg1 {[%clk 0:00:05]}  Qc2 {[%clk 0:00:04]} 38. Qxc2 {[%clk 0:00:03]}  dxc2 {[%clk 0:00:05]} 39. Nc1 {[%clk 0:00:04]}  Bc4 {[%clk 0:00:05]} 40. f3 {[%clk 0:00:05]}  Kg6 {[%clk 0:00:05]} 41. Kf2 {[%clk 0:00:05]}  Kf5 {[%clk 0:00:05]} 42. Ke3 {[%clk 0:00:06]}  Ke5 {[%clk 0:00:06]} 43. Kd2 {[%clk 0:00:06]}  Kd4 {[%clk 0:00:06]} 44. Kxc2 {[%clk 0:00:07]}  Kxc5 {[%clk 0:00:05]} 45. Nd3+ {[%clk 0:00:00]}  Kd4 {[%clk 0:00:05]} 0-1


[Site "https://www.chess.com"]

[Event "Titled Tuesday Blitz July 11 Early 2023"]
[White "Shishkov, Andrei"]
[Black "Hilary46"]
[WhiteFideId "4500563"]
[WhiteElo "2547"]
[BlackElo "2757"]
[Result "1-0"]
[Round "8"]
[TimeControl "180+2"]
[Date "2023.07.11"]
[WhiteClock "0:00:10"]
[BlackClock "0:00:00"]
[Board "40"]

1. d4 {[%clk 0:02:25]}  d5 {[%clk 0:02:59]} 2. c4 {[%clk 0:02:26]}  c6 {[%clk 0:03:00]} 3. e3 {[%clk 0:02:26]}  Nf6 {[%clk 0:03:00]} 4. Nc3 {[%clk 0:02:26]}  e6 {[%clk 0:03:00]} 5. b3 {[%clk 0:02:26]}  Nbd7 {[%clk 0:03:00]} 6. Bb2 {[%clk 0:02:27]}  Bd6 {[%clk 0:03:00]} 7. Bd3 {[%clk 0:02:27]}  O-O {[%clk 0:03:00]} 8. Nge2 {[%clk 0:02:27]}  e5 {[%clk 0:02:58]} 9. cxd5 {[%clk 0:02:27]}  cxd5 {[%clk 0:02:58]} 10. dxe5 {[%clk 0:02:28]}  Nxe5 {[%clk 0:02:58]} 11. O-O {[%clk 0:02:28]}  Nxd3 {[%clk 0:02:45]} 12. Qxd3 {[%clk 0:02:29]}  Bg4 {[%clk 0:02:41]} 13. h3 {[%clk 0:02:27]}  Bh5 {[%clk 0:02:41]} 14. f4 {[%clk 0:02:07]}  Bxe2 {[%clk 0:02:35]} 15. Nxe2 {[%clk 0:02:08]}  Re8 {[%clk 0:02:34]} 16. Rad1 {[%clk 0:01:59]}  Bc5 {[%clk 0:02:30]} 17. Rf3 {[%clk 0:01:45]}  Qb6 {[%clk 0:02:28]} 18. Bd4 {[%clk 0:01:33]}  Rad8 {[%clk 0:02:24]} 19. Kh2 {[%clk 0:01:27]}  h6 {[%clk 0:02:16]} 20. Rg3 {[%clk 0:01:20]}  Bxd4 {[%clk 0:02:13]} 21. Qxd4 {[%clk 0:01:08]}  Qxd4 {[%clk 0:02:12]} 22. Rxd4 {[%clk 0:01:09]}  Ne4 {[%clk 0:02:11]} 23. Rf3 {[%clk 0:01:08]}  Rc8 {[%clk 0:02:08]} 24. Rxd5 {[%clk 0:00:56]}  Rc2 {[%clk 0:02:07]} 25. Ng3 {[%clk 0:00:50]}  Nf6 {[%clk 0:01:42]} 26. Ra5 {[%clk 0:00:45]}  a6 {[%clk 0:01:43]} 27. Ra4 {[%clk 0:00:38]}  g6 {[%clk 0:01:37]} 28. e4 {[%clk 0:00:36]}  h5 {[%clk 0:01:34]} 29. e5 {[%clk 0:00:32]}  Nd5 {[%clk 0:01:32]} 30. Rd4 {[%clk 0:00:32]}  Ne7 {[%clk 0:01:31]} 31. f5 {[%clk 0:00:29]}  Rxa2 {[%clk 0:01:26]} 32. e6 {[%clk 0:00:20]}  gxf5 {[%clk 0:01:18]} 33. exf7+ {[%clk 0:00:17]}  Kxf7 {[%clk 0:01:19]} 34. Nxf5 {[%clk 0:00:18]}  Nxf5 {[%clk 0:01:20]} 35. Rxf5+ {[%clk 0:00:18]}  Kg6 {[%clk 0:01:19]} 36. Rc5 {[%clk 0:00:16]}  Re6 {[%clk 0:00:45]} 37. Rdd5 {[%clk 0:00:16]}  h4 {[%clk 0:00:46]} 38. Rg5+ {[%clk 0:00:16]}  Kf7 {[%clk 0:00:44]} 39. Rcf5+ {[%clk 0:00:16]}  Rf6 {[%clk 0:00:42]} 40. Rxf6+ {[%clk 0:00:16]}  Kxf6 {[%clk 0:00:43]} 41. Rg4 {[%clk 0:00:17]}  a5 {[%clk 0:00:31]} 42. Rxh4 {[%clk 0:00:17]}  Rb2 {[%clk 0:00:30]} 43. Ra4 {[%clk 0:00:13]}  b6 {[%clk 0:00:30]} 44. Ra3 {[%clk 0:00:13]}  Ke5 {[%clk 0:00:28]} 45. Kg3 {[%clk 0:00:13]}  Kd4 {[%clk 0:00:24]} 46. h4 {[%clk 0:00:14]}  Kc3 {[%clk 0:00:24]} 47. h5 {[%clk 0:00:14]}  Rb1 {[%clk 0:00:24]} 48. Kg4 {[%clk 0:00:13]}  Kb2 {[%clk 0:00:20]} 49. Ra4 {[%clk 0:00:13]}  Kxb3 {[%clk 0:00:21]} 50. Rf4 {[%clk 0:00:13]}  a4 {[%clk 0:00:20]} 51. Rf3+ {[%clk 0:00:11]}  Kb4 {[%clk 0:00:20]} 52. h6 {[%clk 0:00:12]}  Rd1 {[%clk 0:00:17]} 53. h7 {[%clk 0:00:10]}  Rd8 {[%clk 0:00:18]} 54. Kh5 {[%clk 0:00:10]}  a3 {[%clk 0:00:18]} 55. g4 {[%clk 0:00:10]}  a2 {[%clk 0:00:18]} 56. Rf1 {[%clk 0:00:10]}  Rf8 {[%clk 0:00:08]} 57. Ra1 {[%clk 0:00:09]}  Kb3 {[%clk 0:00:08]} 58. g5 {[%clk 0:00:10]}  Kb2 {[%clk 0:00:03]} 59. Rxa2+ {[%clk 0:00:10]}  Kxa2 {[%clk 0:00:04]} 60. g6 {[%clk 0:00:10]}  Rf1 {[%clk 0:00:02]} 61. g7 {[%clk 0:00:09]}  Rh1+ {[%clk 0:00:02]} 62. Kg6 {[%clk 0:00:10]}  Rg1+ {[%clk 0:00:03]} 63. Kf6 {[%clk 0:00:10]}  Rf1+ {[%clk 0:00:03]} 64. Ke5 {[%clk 0:00:10]}  Re1+ {[%clk 0:00:00]} 65. Kd4 {[%clk 0:00:10]} 1-0


[Site "https://www.chess.com"]

[Event "Titled Tuesday Blitz July 11 Early 2023"]
[White "Nasuta, Grzegorz"]
[Black "Yurovskykh, Oleksandr"]
[WhiteFideId "1141686"]
[BlackFideId "14134020"]
[WhiteElo "2754"]
[BlackElo "2544"]
[Result "1-0"]
[Round "8"]
[TimeControl "180+2"]
[Date "2023.07.11"]
[WhiteClock "0:00:04"]
[BlackClock "0:00:00"]
[Board "41"]

1. e4 {[%clk 0:03:00]}  e6 {[%clk 0:02:54]} 2. d4 {[%clk 0:02:59]}  d5 {[%clk 0:02:54]} 3. Nc3 {[%clk 0:02:52]}  dxe4 {[%clk 0:02:54]} 4. Nxe4 {[%clk 0:02:52]}  Bd7 {[%clk 0:02:54]} 5. Bd3 {[%clk 0:02:50]}  Bc6 {[%clk 0:02:52]} 6. Nf3 {[%clk 0:02:44]}  Nd7 {[%clk 0:02:51]} 7. O-O {[%clk 0:02:43]}  Ngf6 {[%clk 0:02:50]} 8. Nxf6+ {[%clk 0:02:39]}  Qxf6 {[%clk 0:02:46]} 9. Be2 {[%clk 0:02:11]}  Bd6 {[%clk 0:02:44]} 10. Bg5 {[%clk 0:02:03]}  Qg6 {[%clk 0:02:06]} 11. Bh4 {[%clk 0:01:51]}  O-O {[%clk 0:01:56]} 12. c3 {[%clk 0:01:49]}  Rfe8 {[%clk 0:01:49]} 13. Re1 {[%clk 0:01:32]}  h6 {[%clk 0:01:17]} 14. Bg3 {[%clk 0:01:23]}  Bxg3 {[%clk 0:01:16]} 15. hxg3 {[%clk 0:01:24]}  Rad8 {[%clk 0:01:09]} 16. Qb3 {[%clk 0:01:01]}  Qf6 {[%clk 0:01:02]} 17. a4 {[%clk 0:00:54]}  a5 {[%clk 0:01:01]} 18. Nd2 {[%clk 0:00:41]}  Nb6 {[%clk 0:00:48]} 19. Bf3 {[%clk 0:00:36]}  Bd5 {[%clk 0:00:42]} 20. Bxd5 {[%clk 0:00:34]}  exd5 {[%clk 0:00:28]} 21. Qb5 {[%clk 0:00:31]}  Rxe1+ {[%clk 0:00:26]} 22. Rxe1 {[%clk 0:00:30]}  Qc6 {[%clk 0:00:22]} 23. Qxc6 {[%clk 0:00:19]}  bxc6 {[%clk 0:00:22]} 24. b3 {[%clk 0:00:15]}  Kf8 {[%clk 0:00:21]} 25. Nf3 {[%clk 0:00:14]}  Nd7 {[%clk 0:00:19]} 26. Kf1 {[%clk 0:00:11]}  Rb8 {[%clk 0:00:19]} 27. Nd2 {[%clk 0:00:11]}  c5 {[%clk 0:00:18]} 28. Ke2 {[%clk 0:00:10]}  cxd4 {[%clk 0:00:18]} 29. cxd4 {[%clk 0:00:11]}  c5 {[%clk 0:00:18]} 30. Kd3 {[%clk 0:00:11]}  f6 {[%clk 0:00:17]} 31. Rc1 {[%clk 0:00:11]}  Rc8 {[%clk 0:00:15]} 32. Rc3 {[%clk 0:00:08]}  Ke7 {[%clk 0:00:15]} 33. Nf3 {[%clk 0:00:04]}  Kd6 {[%clk 0:00:15]} 34. Nh4 {[%clk 0:00:04]}  Ke6 {[%clk 0:00:14]} 35. Rc2 {[%clk 0:00:04]}  Rb8 {[%clk 0:00:07]} 36. Re2+ {[%clk 0:00:03]}  Kf7 {[%clk 0:00:06]} 37. Kc2 {[%clk 0:00:01]}  cxd4 {[%clk 0:00:06]} 38. Nf5 {[%clk 0:00:02]}  Nc5 {[%clk 0:00:06]} 39. Nxd4 {[%clk 0:00:02]}  Rc8 {[%clk 0:00:05]} 40. Kb2 {[%clk 0:00:02]}  Nd3+ {[%clk 0:00:05]} 41. Ka3 {[%clk 0:00:02]}  Nb4 {[%clk 0:00:05]} 42. Kb2 {[%clk 0:00:02]}  h5 {[%clk 0:00:04]} 43. Rd2 {[%clk 0:00:02]}  Re8 {[%clk 0:00:04]} 44. Nf3 {[%clk 0:00:02]}  g5 {[%clk 0:00:03]} 45. Nd4 {[%clk 0:00:03]}  Rc8 {[%clk 0:00:03]} 46. Nc2 {[%clk 0:00:03]}  Nxc2 {[%clk 0:00:00]} 47. Rxc2 {[%clk 0:00:04]} 1-0


[Site "https://www.chess.com"]

[Event "Titled Tuesday Blitz July 11 Early 2023"]
[White "Hajiyev, Kanan"]
[Black "Nazari, Arad"]
[WhiteFideId "13404148"]
[BlackFideId "12577324"]
[WhiteElo "2541"]
[BlackElo "2728"]
[Result "1-0"]
[Round "8"]
[TimeControl "180+2"]
[Date "2023.07.11"]
[WhiteClock "0:00:04"]
[BlackClock "0:00:00"]
[Board "42"]

1. d4 {[%clk 0:03:00]}  Nf6 {[%clk 0:03:00]} 2. Nf3 {[%clk 0:02:57]}  g6 {[%clk 0:03:00]} 3. c4 {[%clk 0:02:57]}  Bg7 {[%clk 0:03:00]} 4. g3 {[%clk 0:02:58]}  O-O {[%clk 0:03:00]} 5. Bg2 {[%clk 0:02:59]}  c6 {[%clk 0:03:01]} 6. O-O {[%clk 0:02:59]}  d5 {[%clk 0:03:01]} 7. cxd5 {[%clk 0:03:00]}  cxd5 {[%clk 0:03:00]} 8. Nc3 {[%clk 0:03:01]}  Ne4 {[%clk 0:03:00]} 9. Qb3 {[%clk 0:03:01]}  Nxc3 {[%clk 0:02:59]} 10. bxc3 {[%clk 0:03:02]}  Nc6 {[%clk 0:03:00]} 11. Ba3 {[%clk 0:02:55]}  Na5 {[%clk 0:02:59]} 12. Qb4 {[%clk 0:02:54]}  Re8 {[%clk 0:02:51]} 13. Nd2 {[%clk 0:02:51]}  b6 {[%clk 0:02:40]} 14. e4 {[%clk 0:02:45]}  Bb7 {[%clk 0:02:41]} 15. Rfe1 {[%clk 0:02:41]}  e6 {[%clk 0:02:35]} 16. Rac1 {[%clk 0:02:09]}  Rc8 {[%clk 0:02:32]} 17. e5 {[%clk 0:02:00]}  Bf8 {[%clk 0:02:19]} 18. Qb2 {[%clk 0:01:58]}  Ba6 {[%clk 0:02:13]} 19. Bb4 {[%clk 0:01:45]}  Bxb4 {[%clk 0:01:58]} 20. cxb4 {[%clk 0:01:45]}  Nc4 {[%clk 0:01:58]} 21. Nxc4 {[%clk 0:01:43]}  Bxc4 {[%clk 0:01:59]} 22. h4 {[%clk 0:01:38]}  h5 {[%clk 0:01:48]} 23. a4 {[%clk 0:01:29]}  a5 {[%clk 0:01:31]} 24. b5 {[%clk 0:01:25]}  Qe7 {[%clk 0:01:28]} 25. Rb1 {[%clk 0:01:02]}  Rc7 {[%clk 0:01:22]} 26. Rec1 {[%clk 0:00:59]}  Rec8 {[%clk 0:01:22]} 27. Qd2 {[%clk 0:00:41]}  Qa3 {[%clk 0:01:08]} 28. Ra1 {[%clk 0:00:36]}  Qd3 {[%clk 0:01:01]} 29. Qf4 {[%clk 0:00:25]}  Qf5 {[%clk 0:00:21]} 30. Qe3 {[%clk 0:00:23]}  Bd3 {[%clk 0:00:13]} 31. Rxc7 {[%clk 0:00:11]}  Rxc7 {[%clk 0:00:14]} 32. Rc1 {[%clk 0:00:12]}  Rxc1+ {[%clk 0:00:10]} 33. Qxc1 {[%clk 0:00:12]}  Bc2 {[%clk 0:00:10]} 34. Qa3 {[%clk 0:00:06]}  Kg7 {[%clk 0:00:07]} 35. Bf1 {[%clk 0:00:04]}  Bd1 {[%clk 0:00:03]} 36. Qc3 {[%clk 0:00:03]}  Bxa4 {[%clk 0:00:02]} 37. Qc6 {[%clk 0:00:03]}  Bc2 {[%clk 0:00:02]} 38. Qxb6 {[%clk 0:00:04]}  a4 {[%clk 0:00:02]} 39. Qa5 {[%clk 0:00:04]}  Qe4 {[%clk 0:00:02]} 40. Qb4 {[%clk 0:00:04]}  Bd3 {[%clk 0:00:01]} 41. b6 {[%clk 0:00:04]}  Qe1 {[%clk 0:00:01]} 42. Qxe1 {[%clk 0:00:04]}  Bxf1 {[%clk 0:00:00]} 43. Kxf1 {[%clk 0:00:04]} 1-0


[Site "https://www.chess.com"]

[Event "Titled Tuesday Blitz July 11 Early 2023"]
[White "Timerkhanov, Alexander"]
[Black "brm72"]
[WhiteFideId "24177938"]
[WhiteElo "2706"]
[BlackElo "2532"]
[Result "1/2-1/2"]
[Round "8"]
[TimeControl "180+2"]
[Date "2023.07.11"]
[WhiteClock "0:00:07"]
[BlackClock "0:00:21"]
[Board "45"]

1. d4 {[%clk 0:02:56]}  Nf6 {[%clk 0:03:00]} 2. Bg5 {[%clk 0:02:54]}  Ne4 {[%clk 0:02:59]} 3. Bf4 {[%clk 0:02:53]}  d5 {[%clk 0:02:59]} 4. Nd2 {[%clk 0:02:53]}  Bf5 {[%clk 0:02:54]} 5. e3 {[%clk 0:02:47]}  c5 {[%clk 0:02:52]} 6. Nxe4 {[%clk 0:02:38]}  Bxe4 {[%clk 0:02:51]} 7. Bxb8 {[%clk 0:02:37]}  Qa5+ {[%clk 0:02:45]} 8. Qd2 {[%clk 0:02:18]}  Qxd2+ {[%clk 0:02:44]} 9. Kxd2 {[%clk 0:02:18]}  Rxb8 {[%clk 0:02:45]} 10. dxc5 {[%clk 0:02:19]}  a5 {[%clk 0:02:37]} 11. c3 {[%clk 0:02:14]}  e5 {[%clk 0:02:37]} 12. Bb5+ {[%clk 0:02:12]}  Kd8 {[%clk 0:02:36]} 13. f3 {[%clk 0:02:11]}  Bg6 {[%clk 0:02:35]} 14. b4 {[%clk 0:02:10]}  b6 {[%clk 0:02:33]} 15. a4 {[%clk 0:01:45]}  axb4 {[%clk 0:02:26]} 16. cxb4 {[%clk 0:01:44]}  bxc5 {[%clk 0:02:27]} 17. bxc5 {[%clk 0:01:44]}  Bxc5 {[%clk 0:02:27]} 18. Rc1 {[%clk 0:01:33]}  Bb4+ {[%clk 0:02:23]} 19. Ke2 {[%clk 0:01:33]}  Rc8 {[%clk 0:02:09]} 20. Nh3 {[%clk 0:01:30]}  Ke7 {[%clk 0:02:06]} 21. Rhd1 {[%clk 0:01:22]}  Kd6 {[%clk 0:02:04]} 22. Nf2 {[%clk 0:01:18]}  Ke6 {[%clk 0:01:54]} 23. e4 {[%clk 0:01:13]}  dxe4 {[%clk 0:01:50]} 24. fxe4 {[%clk 0:01:11]}  Rxc1 {[%clk 0:01:46]} 25. Rxc1 {[%clk 0:01:11]}  Rd8 {[%clk 0:01:37]} 26. Rc6+ {[%clk 0:00:55]}  Rd6 {[%clk 0:01:29]} 27. Rc4 {[%clk 0:00:50]}  Rd2+ {[%clk 0:01:21]} 28. Ke3 {[%clk 0:00:47]}  Ba5 {[%clk 0:01:21]} 29. Nd3 {[%clk 0:00:34]}  Rxg2 {[%clk 0:01:10]} 30. Rc6+ {[%clk 0:00:34]}  Ke7 {[%clk 0:01:08]} 31. Nxe5 {[%clk 0:00:34]}  Rxh2 {[%clk 0:01:00]} 32. Ra6 {[%clk 0:00:34]}  Bd2+ {[%clk 0:00:57]} 33. Kd3 {[%clk 0:00:32]}  Bh5 {[%clk 0:00:51]} 34. Nc6+ {[%clk 0:00:26]}  Kd6 {[%clk 0:00:49]} 35. Nd4+ {[%clk 0:00:24]}  Ke5 {[%clk 0:00:45]} 36. Ra8 {[%clk 0:00:19]}  Bc1 {[%clk 0:00:42]} 37. Re8+ {[%clk 0:00:18]}  Kd6 {[%clk 0:00:41]} 38. a5 {[%clk 0:00:18]}  Ra2 {[%clk 0:00:36]} 39. a6 {[%clk 0:00:17]}  Kc5 {[%clk 0:00:35]} 40. Bc4 {[%clk 0:00:15]}  Ra3+ {[%clk 0:00:34]} 41. Nb3+ {[%clk 0:00:15]}  Kb6 {[%clk 0:00:30]} 42. Rb8+ {[%clk 0:00:15]}  Kc6 {[%clk 0:00:23]} 43. Kc2 {[%clk 0:00:11]}  Be3 {[%clk 0:00:21]} 44. Bd5+ {[%clk 0:00:11]}  Kd6 {[%clk 0:00:20]} 45. Bc4 {[%clk 0:00:08]}  Bf3 {[%clk 0:00:18]} 46. Re8 {[%clk 0:00:07]}  g6 {[%clk 0:00:17]} 47. Nd2 {[%clk 0:00:03]}  Bxd2 {[%clk 0:00:15]} 48. Kxd2 {[%clk 0:00:04]}  f6 {[%clk 0:00:15]} 49. Bb5 {[%clk 0:00:02]}  Kc5 {[%clk 0:00:15]} 50. Bd3 {[%clk 0:00:01]}  Kd4 {[%clk 0:00:14]} 51. Rd8+ {[%clk 0:00:01]}  Ke5 {[%clk 0:00:15]} 52. Rd7 {[%clk 0:00:02]}  f5 {[%clk 0:00:10]} 53. exf5 {[%clk 0:00:01]}  gxf5 {[%clk 0:00:11]} 54. a7 {[%clk 0:00:02]}  Be4 {[%clk 0:00:10]} 55. Bxe4 {[%clk 0:00:02]}  fxe4 {[%clk 0:00:11]} 56. Rxh7 {[%clk 0:00:02]}  Kf4 {[%clk 0:00:11]} 57. Rf7+ {[%clk 0:00:02]}  Ke5 {[%clk 0:00:11]} 58. Ke2 {[%clk 0:00:03]}  Kd4 {[%clk 0:00:11]} 59. Rd7+ {[%clk 0:00:03]}  Ke5 {[%clk 0:00:11]} 60. Re7+ {[%clk 0:00:04]}  Kf4 {[%clk 0:00:12]} 61. Rf7+ {[%clk 0:00:04]}  Ke5 {[%clk 0:00:13]} 62. Re7+ {[%clk 0:00:04]}  Kd4 {[%clk 0:00:13]} 63. a8=Q {[%clk 0:00:04]}  Rxa8 {[%clk 0:00:13]} 64. Rd7+ {[%clk 0:00:05]}  Ke5 {[%clk 0:00:13]} 65. Re7+ {[%clk 0:00:05]}  Kd5 {[%clk 0:00:14]} 66. Rd7+ {[%clk 0:00:06]}  Ke6 {[%clk 0:00:14]} 67. Rh7 {[%clk 0:00:06]}  Ra3 {[%clk 0:00:13]} 68. Rh5 {[%clk 0:00:06]}  Rd3 {[%clk 0:00:12]} 69. Rg5 {[%clk 0:00:06]}  Rf3 {[%clk 0:00:12]} 70. Rh5 {[%clk 0:00:06]}  Rf4 {[%clk 0:00:13]} 71. Ra5 {[%clk 0:00:06]}  Rf3 {[%clk 0:00:11]} 72. Rb5 {[%clk 0:00:06]}  Rd3 {[%clk 0:00:11]} 73. Ra5 {[%clk 0:00:06]}  Rd5 {[%clk 0:00:10]} 74. Rxd5 {[%clk 0:00:06]}  Kxd5 {[%clk 0:00:11]} 75. Ke3 {[%clk 0:00:06]}  Ke5 {[%clk 0:00:12]} 76. Ke2 {[%clk 0:00:06]}  Kd4 {[%clk 0:00:13]} 77. Kd2 {[%clk 0:00:07]}  e3+ {[%clk 0:00:14]} 78. Ke2 {[%clk 0:00:07]}  Ke4 {[%clk 0:00:15]} 79. Ke1 {[%clk 0:00:08]}  Kd3 {[%clk 0:00:16]} 80. Kd1 {[%clk 0:00:08]}  Kc3 {[%clk 0:00:16]} 81. Ke2 {[%clk 0:00:08]}  Kd4 {[%clk 0:00:17]} 82. Ke1 {[%clk 0:00:07]}  Ke5 {[%clk 0:00:18]} 83. Ke2 {[%clk 0:00:07]}  Kf4 {[%clk 0:00:18]} 84. Ke1 {[%clk 0:00:07]}  Ke4 {[%clk 0:00:19]} 85. Ke2 {[%clk 0:00:07]}  Kf4 {[%clk 0:00:19]} 86. Ke1 {[%clk 0:00:07]}  Kg3 {[%clk 0:00:20]} 87. Ke2 {[%clk 0:00:07]}  Kf4 {[%clk 0:00:21]} 1/2-1/2


[Site "https://www.chess.com"]

[Event "Titled Tuesday Blitz July 11 Early 2023"]
[White "Keleberda, Tymur"]
[Black "Shuvalova, Polina"]
[WhiteFideId "14174294"]
[BlackFideId "24171760"]
[WhiteElo "2515"]
[BlackElo "2686"]
[Result "1-0"]
[Round "8"]
[TimeControl "180+2"]
[Date "2023.07.11"]
[WhiteClock "0:00:24"]
[BlackClock "0:00:02"]
[Board "47"]

1. e4 {[%clk 0:03:00]}  c6 {[%clk 0:02:59]} 2. d4 {[%clk 0:02:59]}  d5 {[%clk 0:03:00]} 3. e5 {[%clk 0:02:59]}  Bf5 {[%clk 0:03:00]} 4. h4 {[%clk 0:02:59]}  h5 {[%clk 0:03:00]} 5. Bd3 {[%clk 0:02:59]}  Bxd3 {[%clk 0:03:01]} 6. Qxd3 {[%clk 0:03:00]}  Qa5+ {[%clk 0:03:01]} 7. Nd2 {[%clk 0:02:58]}  e6 {[%clk 0:03:00]} 8. Nf3 {[%clk 0:02:58]}  Nh6 {[%clk 0:02:58]} 9. O-O {[%clk 0:02:55]}  Nf5 {[%clk 0:02:58]} 10. c4 {[%clk 0:02:55]}  Be7 {[%clk 0:02:57]} 11. g3 {[%clk 0:02:55]}  Qa6 {[%clk 0:02:51]} 12. b3 {[%clk 0:02:51]}  c5 {[%clk 0:02:50]} 13. Qc2 {[%clk 0:02:46]}  dxc4 {[%clk 0:02:40]} 14. d5 {[%clk 0:02:34]}  c3 {[%clk 0:02:21]} 15. Nb1 {[%clk 0:02:27]}  Nd4 {[%clk 0:02:19]} 16. Nxd4 {[%clk 0:02:27]}  cxd4 {[%clk 0:02:19]} 17. d6 {[%clk 0:02:27]}  Bd8 {[%clk 0:02:17]} 18. Rd1 {[%clk 0:01:51]}  Nc6 {[%clk 0:02:17]} 19. Qe4 {[%clk 0:01:50]}  O-O {[%clk 0:02:00]} 20. Na3 {[%clk 0:01:50]}  b5 {[%clk 0:01:57]} 21. Nc2 {[%clk 0:01:49]}  Bb6 {[%clk 0:01:38]} 22. Qxc6 {[%clk 0:01:38]}  d3 {[%clk 0:01:21]} 23. Nb4 {[%clk 0:01:38]}  Qa5 {[%clk 0:01:21]} 24. Nxd3 {[%clk 0:01:37]}  Rac8 {[%clk 0:01:19]} 25. Qe4 {[%clk 0:01:34]}  c2 {[%clk 0:01:19]} 26. Re1 {[%clk 0:01:22]}  Qc3 {[%clk 0:01:15]} 27. Bb2 {[%clk 0:01:23]}  Qd2 {[%clk 0:01:10]} 28. Qe2 {[%clk 0:01:23]}  Qh6 {[%clk 0:00:46]} 29. Rec1 {[%clk 0:01:15]}  Qg6 {[%clk 0:00:46]} 30. Kg2 {[%clk 0:01:16]}  Rc6 {[%clk 0:00:43]} 31. Rxc2 {[%clk 0:01:13]}  Rxc2 {[%clk 0:00:43]} 32. Qxc2 {[%clk 0:01:14]}  Qe4+ {[%clk 0:00:44]} 33. Kg1 {[%clk 0:01:13]}  g5 {[%clk 0:00:39]} 34. Ne1 {[%clk 0:01:06]}  Qg4 {[%clk 0:00:36]} 35. Qd3 {[%clk 0:01:00]}  gxh4 {[%clk 0:00:32]} 36. Qf3 {[%clk 0:01:00]}  Qg6 {[%clk 0:00:32]} 37. Kh2 {[%clk 0:00:43]}  Kh8 {[%clk 0:00:25]} 38. Rc1 {[%clk 0:00:43]}  hxg3+ {[%clk 0:00:20]} 39. fxg3 {[%clk 0:00:43]}  Kh7 {[%clk 0:00:08]} 40. Ng2 {[%clk 0:00:43]}  Rg8 {[%clk 0:00:08]} 41. Nf4 {[%clk 0:00:42]}  Qf5 {[%clk 0:00:05]} 42. Qxh5+ {[%clk 0:00:42]}  Qxh5+ {[%clk 0:00:06]} 43. Nxh5 {[%clk 0:00:43]}  Kg6 {[%clk 0:00:05]} 44. Nf6 {[%clk 0:00:40]}  Rh8+ {[%clk 0:00:05]} 45. Kg2 {[%clk 0:00:41]}  Kf5 {[%clk 0:00:05]} 46. Rf1+ {[%clk 0:00:40]}  Kg6 {[%clk 0:00:05]} 47. Bc1 {[%clk 0:00:40]}  Rc8 {[%clk 0:00:05]} 48. g4 {[%clk 0:00:27]}  Rc2+ {[%clk 0:00:05]} 49. Kf3 {[%clk 0:00:28]}  Rxa2 {[%clk 0:00:06]} 50. Rh1 {[%clk 0:00:28]}  Kg7 {[%clk 0:00:04]} 51. Rh7+ {[%clk 0:00:26]}  Kg6 {[%clk 0:00:04]} 52. Rh8 {[%clk 0:00:24]}  Rf2+ {[%clk 0:00:04]} 53. Kg3 {[%clk 0:00:24]}  Rc2 {[%clk 0:00:02]} 54. Rg8# {[%clk 0:00:24]} 1-0


[Site "https://www.chess.com"]